bitfinex/quotes_ETHUSD_20250730
["timestamp","ask_amount","ask_price","bid_price","bid_amount"]
[1753912402226,0.4516,3767.7,3767.0,4.135]
[1753912402726,0.04,3767.9,3767.1,0.7825]
[1753912402949,0.4516,3767.7,3767.1,0.7825]
[1753912403698,0.4916,3767.9,3767.1,0.7825]
[1753912403892,0.4916,3767.9,3767.2,0.4742]
[1753912404094,0.04,3767.9,3767.2,0.50074491]
[1753912404329,0.04,3767.9,3767.5,0.8185]
[1753912404644,0.04,3767.9,3767.6,4.14]
[1753912404846,0.04,3767.9,3767.7,2.65408822]
[1753912405203,0.04,3767.9,3767.8,0.9167]
[1753912406429,0.04,3767.9,3767.8,0.4742]
[1753912406971,0.04,3767.9,3767.8,3.67826868]
[1753912407097,0.04,3767.9,3767.8,4.89176868]
[1753912408710,0.04,3768.9,3768.3,2.65369366]
[1753912409037,0.04,3768.9,3768.4,4.6092]
[1753912409237,0.04,3768.9,3768.8,0.1328]
[1753912409438,0.95680665,3768.9,3768.8,0.1328]
[1753912409999,1.87050665,3768.9,3768.8,0.1328]
[1753912410202,2.05755732,3768.9,3768.8,0.1328]
[1753912410403,0.7804,3768.7,3766.1,0.7554]
[1753912410642,30.0,3767.5,3767.2,0.1328]
[1753912410947,30.0,3767.2,3766.8,0.1328]
[1753912411116,30.0,3767.0,3766.8,0.1328]
[1753912411318,30.03318378,3766.9,3766.8,0.1328]
[1753912411514,0.7804,3767.1,3766.8,0.1328]
[1753912411731,0.4516,3767.0,3766.8,0.1328]
[1753912411918,0.7804,3767.1,3766.3,3.4742]
[1753912412120,0.1328,3767.7,3766.9,0.1328]
[1753912412359,0.7804,3767.6,3766.9,0.1328]
[1753912412564,0.7804,3767.6,3766.5,1.2296]
[1753912412728,0.4516,3767.5,3767.4,0.1328]
[1753912412928,0.9137,3767.5,3766.3,3.0]
[1753912413130,0.9137,3767.4,3767.1,0.1328]
[1753912413457,0.7623,3767.3,3766.2,4.161]
[1753912413659,0.94688114,3767.2,3766.9,0.1328]
[1753912413957,0.94688114,3767.2,3766.8,0.1328]
[1753912414154,0.03318114,3767.2,3766.8,0.1328]
[1753912414457,0.9137,3767.1,3766.8,0.1328]
[1753912414656,0.03318114,3767.2,3766.8,0.1328]
[1753912414831,0.9137,3767.0,3766.8,0.1328]
[1753912415032,0.9137,3766.9,3766.8,0.1328]
[1753912415348,1.83028378,3766.9,3766.4,0.1328]
[1753912415518,0.4516,3766.8,3766.4,0.1328]
[1753912415860,0.9137,3766.7,3766.4,0.1328]
[1753912416054,0.6622201,3766.7,3766.4,0.1328]
[1753912416254,0.4516,3766.6,3766.4,0.1328]
[1753912416782,0.8834,3766.9,3766.1,0.04]
[1753912416987,0.9137,3766.5,3766.3,0.1328]
[1753912417484,0.4516,3766.4,3766.3,0.1328]
[1753912417884,0.03318466,3766.8,3766.3,0.1328]
[1753912418087,0.4516,3766.4,3766.3,0.1328]
[1753912418293,0.9137,3766.7,3766.3,0.1328]
[1753912418582,0.4516,3766.6,3766.3,0.1328]
[1753912418753,0.4516,3766.6,3766.5,0.1328]
[1753912421796,0.9137,3766.6,3766.3,0.1328]
[1753912422005,0.0331873,3766.5,3766.3,0.1328]
[1753912422177,0.4847873,3766.5,3766.3,0.1328]
[1753912422358,0.785,3766.3,3766.1,0.04]
[1753912422562,0.785,3766.3,3766.1,0.1728]
[1753912422761,0.4516,3766.2,3766.1,0.1728]
[1753912423764,1.08357,3766.2,3766.1,0.04]
[1753912426769,0.1328,3766.4,3766.1,0.04]
[1753912426974,30.0,3766.7,3766.1,0.1728]
[1753912427197,0.8055,3766.8,3766.3,0.1328]
[1753912427392,4.26088181,3766.8,3766.4,0.4695]
[1753912427701,4.2481,3766.8,3766.6,0.1328]
[1753912428390,1.2481,3766.8,3766.6,0.1328]
[1753912428571,4.2481,3766.8,3766.6,0.1328]
[1753912429969,3.8055,3766.8,3766.6,0.1328]
[1753912431800,0.8055,3766.8,3766.6,0.1328]
[1753912432003,3.0,3766.7,3766.6,0.1328]
[1753912433800,7.165,3766.7,3766.6,0.1328]
[1753912435178,3.0,3766.7,3766.6,0.1328]
[1753912435770,3.0,3766.7,3766.6,0.6023]
[1753912439082,0.002,3766.9,3766.7,0.8321]
[1753912439282,0.002,3766.9,3766.8,0.9377]
[1753912439475,0.002,3766.9,3766.8,1.0705]
[1753912440510,0.002,3766.9,3766.8,0.6023]
[1753912442330,0.002,3766.9,3766.8,0.1328]
[1753912443531,0.002,3766.9,3766.8,0.6023]
[1753912443833,0.002,3766.9,3766.8,0.1328]
[1753912449043,0.4446,3766.9,3766.8,0.1328]
[1753912449550,0.4446,3766.9,3766.6,0.001]
[1753912449551,0.8012,3766.8,3766.6,0.001]
[1753912449706,1.2438,3766.8,3766.7,0.1328]
[1753912451342,2.12018,3766.8,3766.7,0.1328]
[1753912451909,1.66838,3766.8,3766.7,0.1328]
[1753912453343,2.12018,3766.8,3766.7,0.1328]
[1753912454145,1.66838,3766.8,3766.7,0.1328]
[1753912455854,1.66838,3766.8,3766.6,0.001]
[1753912456047,1.2438,3766.8,3766.6,0.1338]
[1753912456356,0.4426,3766.7,3766.6,0.1338]
[1753912458234,0.8012,3766.8,3766.6,0.1338]
[1753912458455,1.2424,3766.8,3766.6,0.1338]
[1753912460470,0.8012,3766.8,3766.6,0.1338]
[1753912461176,1.2424,3766.8,3766.6,0.1338]
[1753912465659,1.41591,3766.8,3766.6,0.1338]
[1753912465864,0.4412,3766.7,3766.6,0.1338]
[1753912466251,0.002,3766.9,3766.6,0.9555]
[1753912466459,0.002,3766.9,3766.7,0.488]
[1753912466685,0.002,3766.9,3766.7,0.9527]
[1753912466888,0.002,3766.9,3766.8,3.58837328]
[1753912467053,0.002,3766.9,3766.8,4.54107328]
[1753912469787,0.002,3766.9,3766.8,8.67607328]
[1753912472986,0.002,3766.9,3766.8,9.22607328]
[1753912475000,0.002,3766.9,3766.8,8.76137328]
[1753912475301,0.002,3766.9,3766.8,9.22607328]
[1753912479672,0.002,3766.9,3766.8,5.5566]
[1753912480098,0.002,3766.9,3766.8,6.0213]
[1753912480815,0.002,3766.9,3766.8,8.67607328]
[1753912481181,0.002,3766.9,3766.8,6.0213]
[1753912481820,0.002,3766.9,3766.8,5.5566]
[1753912482416,0.002,3766.9,3766.8,0.2656]
[1753912482577,0.9339,3766.9,3766.6,0.001]
[1753912482780,0.96508466,3766.8,3766.6,0.001]
[1753912483287,0.9319,3766.7,3766.6,0.001]
[1753912483813,0.96508554,3766.7,3766.6,0.001]
[1753912485018,0.9319,3766.7,3766.6,0.001]
[1753912487224,1.10694838,3766.7,3766.6,0.001]
[1753912492337,0.61624838,3766.7,3766.6,0.001]
[1753912492524,0.61624838,3766.7,3766.6,0.1338]
[1753912495502,0.64943392,3766.7,3766.6,0.1338]
[1753912495835,1.12873392,3766.7,3766.6,0.1338]
[1753912496509,0.20823392,3766.7,3766.6,0.1338]
[1753912496847,0.4735,3766.7,3766.6,0.1338]
[1753912498624,0.9528,3766.7,3766.6,0.001]
[1753912499247,1.7599,3766.7,3766.6,0.001]
[1753912500535,0.002,3766.9,3766.6,0.001]
[1753912500736,0.002,3766.9,3766.8,0.7731]
[1753912500935,0.002,3766.9,3766.8,1.8485]
[1753912501136,0.002,3766.9,3766.8,4.50327328]
[1753912506234,0.002,3766.9,3766.8,4.52157328]
[1753912506572,0.002,3766.9,3766.8,4.54812101]
[1753912508137,0.002,3766.9,3766.8,5.09812101]
[1753912510544,0.002,3766.9,3766.8,8.09812101]
[1753912510765,0.002,3766.9,3766.8,8.07157328]
[1753912518699,0.4313,3768.1,3767.6,3.46929429]
[1753912518871,0.7859,3768.8,3767.7,4.61334139]
[1753912519052,0.002,3768.8,3768.3,2.65366818]
[1753912519252,0.4333,3768.8,3768.7,0.1328]
[1753912519496,0.4333,3768.8,3768.7,4.2538]
[1753912520456,0.002,3768.8,3768.7,4.2538]
[1753912520882,0.002,3768.8,3768.7,4.7196]
[1753912521389,0.002,3768.8,3768.7,6.90723487]
[1753912521693,0.002,3768.8,3768.7,7.37303487]
[1753912521916,0.002,3768.8,3768.7,4.7196]
[1753912522753,0.002,3768.8,3768.7,7.7196]
[1753912523498,0.002,3768.8,3768.7,9.90723487]
[1753912523701,0.002,3768.8,3768.7,10.83893487]
[1753912524008,0.002,3768.8,3768.7,7.2538]
[1753912524169,0.002,3768.8,3768.7,9.90723487]
[1753912524506,0.002,3768.8,3768.7,7.7196]
[1753912524679,0.002,3768.8,3768.7,4.7196]
[1753912525165,0.002,3768.8,3768.7,7.37303487]
[1753912525365,0.002,3768.8,3768.7,4.7196]
[1753912525796,0.4233,3769.4,3768.7,4.7196]
[1753912525995,0.4534,3769.5,3768.7,7.37302025]
[1753912526311,0.4534,3769.5,3769.4,0.1328]
[1753912526682,0.13087587,3769.6,3769.4,0.1328]
[1753912526884,3.8095,3769.9,3769.4,0.1328]
[1753912527085,0.4534,3769.5,3769.2,4.12]
[1753912527294,0.4534,3769.4,3769.2,4.12]
[1753912527600,0.97403261,3769.8,3769.4,0.1328]
[1753912527906,0.8095,3769.9,3769.3,0.1328]
[1753912528207,0.4713,3769.9,3769.7,0.1328]
[1753912529699,0.04,3769.9,3769.7,0.1328]
[1753912529881,0.4313,3769.8,3769.7,0.1328]
[1753912530477,0.04,3769.9,3769.7,0.1328]
[1753912531006,0.4713,3769.9,3769.7,0.1328]
[1753912531711,0.8847,3769.8,3769.7,0.1328]
[1753912532811,0.4313,3769.8,3769.7,0.1328]
[1753912534488,0.04,3769.9,3769.7,0.1328]
[1753912536933,0.04,3769.9,3769.7,0.5986]
[1753912537822,0.04,3769.9,3769.8,0.4658]
[1753912537992,0.04,3769.9,3769.8,1.7496]
[1753912538197,0.04,3769.9,3769.8,4.95226061]
[1753912538508,0.04,3769.9,3769.8,4.97878721]
[1753912538883,0.04,3769.9,3769.8,4.95226061]
[1753912539094,0.04,3769.9,3769.8,4.97878721]
[1753912540014,0.04,3769.9,3769.8,4.95226061]
[1753912541912,0.04,3769.9,3769.8,1.8337]
[1753912542113,0.04,3769.9,3769.8,4.117]
[1753912542327,0.4713,3769.9,3769.8,4.117]
[1753912542824,0.04,3769.9,3769.8,4.117]
[1753912544299,0.4713,3769.9,3769.8,4.117]
[1753912548027,0.4713,3769.9,3768.7,1.2389]
[1753912548028,1.7147,3769.9,3768.7,1.2389]
[1753912548233,1.6753,3769.8,3768.8,4.116]
[1753912548438,0.04,3769.9,3768.8,4.116]
[1753912548439,0.7657,3769.7,3768.8,4.116]
[1753912548636,1.6753,3769.7,3768.8,4.116]
[1753912548845,0.9096,3769.6,3768.8,4.116]
[1753912549340,0.9096,3769.5,3768.8,4.116]
[1753912549509,0.9096,3769.4,3768.8,4.116]
[1753912549708,0.4777,3769.4,3768.8,4.116]
[1753912549937,0.4319,3769.3,3768.8,4.116]
[1753912550241,0.4319,3769.2,3768.8,4.116]
[1753912550407,0.4319,3769.1,3768.8,4.116]
[1753912551342,0.4319,3769.1,3768.8,4.5845]
[1753912553139,0.4319,3769.1,3769.0,0.1328]
[1753912553344,0.4319,3769.4,3769.0,0.1328]
[1753912553521,0.9096,3769.4,3769.1,4.115]
[1753912553842,0.4319,3769.3,3769.1,4.115]
[1753912554012,0.4777,3769.4,3769.3,0.1328]
[1753912554205,0.4777,3769.4,3769.2,0.1328]
[1753912554437,0.7657,3769.7,3769.2,0.1328]
[1753912554711,0.03316001,3769.6,3769.2,0.1328]
[1753912555040,0.51086001,3769.6,3769.5,0.1328]
[1753912555344,0.03316001,3769.6,3769.5,0.1328]
[1753912555652,0.46506001,3769.6,3769.5,0.1328]
[1753912555945,0.9096,3769.6,3769.5,0.1328]
[1753912558914,0.4319,3769.6,3769.5,0.1328]
[1753912559314,1.00112683,3769.6,3769.5,0.1328]
[1753912559518,1.03428684,3769.6,3769.5,0.1328]
[1753912559847,1.47882683,3769.6,3769.5,0.1328]
[1753912562017,0.7805,3769.5,3769.2,0.1328]
[1753912562219,1.6901,3769.5,3769.2,0.1328]
[1753912562418,0.75552952,3769.4,3769.2,0.1328]
[1753912563032,0.1328,3769.8,3769.2,0.1328]
[1753912563238,0.04,3769.9,3769.4,0.8306]
[1753912563435,0.04,3769.9,3769.8,4.03326061]
[1753912564176,0.04,3769.9,3769.8,4.93966061]
[1753912566277,0.04,3770.9,3770.0,0.55]
[1753912566450,0.04,3770.9,3770.3,2.65226237]
[1753912566768,0.04,3770.9,3770.4,1.2943]
[1753912566932,0.04,3770.9,3770.5,4.114]
[1753912567258,0.04,3770.9,3770.5,5.0204]
[1753912567461,0.04,3770.9,3770.5,4.114]
[1753912567682,0.04,3770.9,3770.6,0.9064]
[1753912568166,0.04,3770.9,3770.7,0.9064]
[1753912568344,0.04,3770.9,3770.8,4.113]
[1753912568729,0.04,3770.9,3770.8,5.4073]
[1753912569130,0.04,3770.9,3770.8,5.8452]
[1753912573162,0.04,3770.9,3770.8,5.978]
[1753912574964,0.04,3770.9,3770.8,5.5401]
[1753912575774,0.04,3770.9,3770.8,5.0716]
[1753912575975,0.04,3770.9,3770.8,5.5401]
[1753912576648,0.04,3770.9,3770.8,4.2448]
[1753912578081,0.04,3770.9,3770.8,4.7073]
[1753912578494,0.042,3770.9,3770.8,4.7073]
[1753912580864,0.042,3770.9,3770.8,4.2448]
[1753912582393,0.042,3770.9,3770.8,4.7073]
[1753912588508,0.042,3770.9,3770.8,4.2448]
[1753912589399,0.042,3770.9,3770.8,4.7073]
[1753912589582,0.4859,3770.9,3770.8,4.2448]
[1753912590205,0.042,3770.9,3770.8,4.2448]
[1753912591207,0.8007,3772.3,3771.1,0.55]
[1753912591516,0.8007,3772.3,3771.2,4.109]
[1753912591723,0.9028,3771.8,3771.2,4.109]
[1753912592087,0.797,3771.6,3771.3,4.109]
[1753912592241,0.9028,3771.5,3771.3,4.109]
[1753912592532,0.837,3771.9,3771.3,4.5715]
[1753912592729,0.837,3771.9,3771.4,0.4625]
[1753912592935,0.837,3771.9,3771.5,4.109]
[1753912592936,1.2809,3771.9,3771.5,4.109]
[1753912593342,0.837,3771.9,3771.5,4.109]
[1753912593552,0.797,3773.0,3771.9,0.55]
[1753912593751,0.4839,3772.9,3772.0,4.5715]
[1753912593957,0.04,3772.9,3772.0,4.109]
[1753912594262,0.04,3772.9,3772.1,0.4625]
[1753912594417,0.04,3772.9,3772.2,7.67151694]
[1753912594615,0.04,3772.9,3772.3,0.4625]
[1753912594928,0.4439,3772.8,3772.4,4.109]
[1753912595123,0.04,3772.9,3772.5,0.4625]
[1753912597985,0.5,3772.6,3772.5,4.38896209]
[1753912598320,0.5,3772.6,3772.5,1.2891]
[1753912598519,0.5,3772.6,3772.5,0.4625]
[1753912599733,0.5,3772.6,3772.5,4.108]
[1753912600767,0.5,3772.6,3772.2,1.0125]
[1753912600967,0.4439,3772.5,3772.3,4.108]
[1753912601132,0.7679,3772.5,3772.4,4.2408]
[1753912601325,0.5,3772.6,3772.4,4.7033]
[1753912601567,0.5,3772.6,3772.5,0.4625]
[1753912604171,0.5,3772.6,3772.4,4.2408]
[1753912604469,0.5,3772.6,3772.4,4.7033]
[1753912605364,0.5,3772.6,3772.4,4.2408]
[1753912605779,0.9439,3772.6,3772.4,4.2408]
[1753912606271,0.4439,3772.5,3772.4,4.2408]
[1753912606631,0.5,3772.6,3772.4,4.2408]
[1753912607670,0.5,3772.6,3772.4,4.7007]
[1753912609187,0.5,3772.6,3772.5,0.4599]
[1753912609394,0.5,3772.6,3772.4,4.2408]
[1753912610006,0.5,3772.6,3772.4,4.7007]
[1753912611208,0.5,3772.6,3772.4,4.2408]
[1753912611981,0.5,3772.6,3772.4,4.7007]
[1753912612552,0.5,3772.6,3772.4,4.2408]
[1753912612887,0.5,3772.6,3772.5,0.4599]
[1753912613651,0.5,3772.6,3772.4,4.2408]
[1753912613882,0.5,3772.6,3772.4,4.7007]
[1753912614250,0.5,3772.6,3772.4,4.2408]
[1753912614588,0.9316,3772.6,3772.4,4.2408]
[1753912614886,0.5,3772.6,3772.4,4.2408]
[1753912615088,0.5,3772.6,3772.4,4.7007]
[1753912616390,0.9316,3772.6,3772.4,4.2408]
[1753912620086,0.9316,3772.6,3772.4,0.1328]
[1753912620258,0.5,3772.6,3772.5,4.106]
[1753912620457,0.5,3772.6,3772.4,0.1328]
[1753912620458,0.7784,3772.5,3772.4,0.1328]
[1753912620657,1.2694,3772.5,3772.4,4.2388]
[1753912620859,1.21,3772.5,3772.4,4.2388]
[1753912622130,1.21,3772.5,3772.4,0.1328]
[1753912622305,1.21,3772.5,3772.4,4.2388]
[1753912622306,1.701,3772.5,3772.4,4.2388]
[1753912623593,1.9211,3772.5,3772.4,4.2388]
[1753912623797,1.9211,3772.5,3772.4,0.1328]
[1753912625676,4.9211,3772.5,3772.4,0.1328]
[1753912625976,4.9211,3772.5,3771.5,6.374]
[1753912625977,0.7798,3772.3,3772.0,0.1328]
[1753912626569,0.9226,3772.2,3772.0,0.1328]
[1753912626798,0.93264,3772.1,3772.0,0.1328]
[1753912627006,3.9226,3772.1,3771.6,4.106]
[1753912627166,1.685,3772.0,3771.7,0.1328]
[1753912627364,0.7973,3771.8,3771.7,0.1328]
[1753912627698,0.7973,3771.8,3771.5,0.001]
[1753912628000,0.9226,3771.7,3771.5,0.1338]
[1753912628205,0.7973,3771.6,3771.5,0.1338]
[1753912628365,1.7199,3771.6,3771.5,0.1338]
[1753912628703,1.7199,3771.6,3771.5,0.001]
[1753912628704,1.99937626,3771.6,3771.5,0.001]
[1753912629014,2.03251869,3771.6,3771.5,0.001]
[1753912629167,5.16531869,3771.6,3771.5,0.001]
[1753912629372,35.16531869,3771.6,3771.5,0.001]
[1753912629700,35.13217626,3771.6,3771.5,0.001]
[1753912630285,35.68217626,3771.6,3771.5,0.001]
[1753912631167,42.77217626,3771.6,3771.5,0.001]
[1753912631369,42.77217626,3771.6,3770.2,4.106]
[1753912631370,0.7835,3770.6,3770.3,0.1328]
[1753912631597,0.67143261,3770.5,3770.2,4.106]
[1753912631801,0.9226,3770.4,3770.1,0.04]
[1753912632002,3.0,3770.2,3770.1,0.04]
[1753912632306,4.57588326,3770.2,3770.1,0.04]
[1753912632511,5.49848326,3770.2,3770.1,0.04]
[1753912634468,5.63096392,3770.2,3770.1,0.04]
[1753912634671,16.82796392,3770.2,3770.1,0.04]
[1753912634888,46.82796392,3770.2,3770.1,0.04]
[1753912637715,47.37796392,3770.2,3770.1,0.04]
[1753912640107,47.57241611,3770.2,3770.1,0.04]
[1753912640477,3.55,3770.1,3769.8,0.001]
[1753912640712,0.55,3769.5,3769.4,0.001]
[1753912640913,44.53148695,3769.5,3769.4,0.001]
[1753912641111,14.96342606,3769.5,3769.4,0.001]
[1753912641302,46.94696867,3769.5,3769.4,0.001]
[1753912642653,0.7888,3769.2,3768.4,0.001]
[1753912642817,37.95726353,3769.2,3768.4,0.001]
[1753912643013,39.0092,3769.2,3768.4,0.001]
[1753912643240,41.57946461,3769.2,3768.4,0.001]
[1753912643452,37.47146461,3769.2,3768.4,0.001]
[1753912643610,36.98426461,3769.2,3768.4,0.001]
[1753912643938,10.62716461,3769.2,3769.1,0.506]
[1753912644963,7.109,3769.2,3769.1,0.9584]
[1753912646226,0.1328,3769.4,3769.1,0.9584]
[1753912646439,0.13248066,3770.2,3769.5,0.7856]
[1753912646643,3.0,3770.1,3769.5,0.7856]
[1753912646844,3.0,3770.3,3769.6,0.9184]
[1753912647131,3.0,3770.3,3769.7,0.9184]
[1753912647344,3.0,3770.3,3769.8,0.9184]
[1753912647627,3.0,3770.3,3769.9,0.9184]
[1753912647855,3.0,3770.5,3770.0,0.9184]
[1753912648020,3.0,3770.5,3769.5,0.7856]
[1753912648021,9.81441686,3770.5,3769.5,0.7856]
[1753912648229,9.81441686,3770.5,3769.6,0.9184]
[1753912648557,9.81441686,3770.5,3769.7,0.9184]
[1753912648759,9.81441686,3770.5,3769.5,0.7856]
[1753912648951,7.24415225,3770.5,3769.8,0.9184]
[1753912649123,7.24415225,3770.5,3769.9,0.4524]
[1753912649461,7.24415225,3770.5,3769.9,0.9184]
[1753912649759,7.24415225,3770.5,3770.0,0.9184]
[1753912649965,7.24415225,3770.5,3769.5,0.7856]
[1753912650261,0.13115225,3770.5,3769.6,0.9184]
[1753912650565,3.0,3770.6,3769.7,0.9184]
[1753912650722,3.0,3770.6,3769.8,0.9184]
[1753912650926,3.0,3770.6,3769.9,0.9184]
[1753912651123,3.0,3770.6,3769.5,0.7856]
[1753912651368,3.0,3770.6,3770.0,0.9184]
[1753912651527,3.0,3770.6,3770.0,0.4524]
[1753912651726,3.0,3770.6,3770.1,0.466]
[1753912651952,3.0,3770.6,3770.2,0.4524]
[1753912652140,3.0,3770.6,3770.3,0.466]
[1753912652345,3.79295,3770.6,3770.3,0.466]
[1753912652532,3.92546328,3770.6,3770.3,0.466]
[1753912653361,3.92546328,3770.6,3770.4,0.466]
[1753912653562,3.92546328,3770.6,3770.2,0.4524]
[1753912653771,3.92546328,3770.6,3770.5,0.466]
[1753912656276,3.92546328,3770.6,3770.3,0.466]
[1753912656574,3.0,3770.4,3770.1,0.1328]
[1753912656742,3.0,3770.4,3770.1,0.5852]
[1753912657239,3.0,3770.4,3770.2,0.466]
[1753912657441,0.13251328,3770.6,3770.3,0.466]
[1753912657637,4.108,3770.8,3770.5,0.1328]
[1753912657854,3.0,3770.8,3770.6,0.9184]
[1753912658071,3.0,3770.8,3770.7,0.1328]
[1753912658281,3.0,3770.8,3770.7,0.5988]
[1753912658594,3.13267552,3770.8,3770.7,0.5988]
[1753912660372,3.93741307,3770.8,3770.7,0.5988]
[1753912673100,3.93741307,3770.8,3770.7,0.1328]
[1753912673517,3.97056253,3770.8,3770.7,0.1328]
[1753912673805,4.83841307,3770.8,3770.4,0.1328]
[1753912673987,3.0,3770.4,3769.8,0.4579]
[1753912674193,1.27432499,3770.3,3770.1,0.1328]
[1753912674374,1.72232499,3770.3,3770.1,0.1328]
[1753912674574,0.448,3770.2,3770.1,0.1328]
[1753912677989,1.27432499,3770.3,3770.1,0.1328]
[1753912679123,1.72232499,3770.3,3770.1,0.1328]
[1753912679287,1.60255749,3770.2,3770.1,0.1328]
[1753912680647,2.05055749,3770.2,3770.1,0.1328]
[1753912682466,9.15755749,3770.2,3770.1,0.1328]
[1753912682762,8.70955749,3770.2,3770.1,0.1328]
[1753912682929,8.70955749,3770.2,3770.1,0.5907]
[1753912684064,5.70955749,3770.2,3770.1,0.1328]
[1753912684215,4.555,3770.2,3770.1,0.1328]
[1753912688355,4.107,3770.2,3770.1,0.1328]
[1753912691116,4.107,3770.2,3770.1,0.5907]
[1753912692649,7.555,3770.2,3770.1,0.1328]
[1753912692860,8.73824,3770.2,3770.1,0.1328]
[1753912694952,8.29024,3770.2,3770.1,0.1328]
[1753912695931,8.73824,3770.2,3770.1,0.1328]
[1753912701232,8.28924,3770.2,3770.1,0.1328]
[1753912701419,8.28924,3770.2,3770.1,0.5989]
[1753912702152,8.28924,3770.2,3770.1,0.1328]
[1753912706140,8.76204,3770.2,3770.1,0.1328]
[1753912709367,8.76104,3770.2,3770.1,0.1328]
[1753912710075,4.65604,3770.2,3770.1,0.1328]
[1753912710275,7.5778,3770.2,3770.1,0.1328]
[1753912710875,7.5798,3770.2,3770.1,0.1328]
[1753912712677,3.4748,3770.2,3770.1,0.1328]
[1753912712878,7.5788,3770.2,3770.1,0.1328]
[1753912715195,7.8999,3770.2,3770.1,0.1328]
[1753912715475,3.0,3770.1,3769.8,0.1328]
[1753912715779,3.0,3769.9,3769.8,0.1328]
[1753912716145,3.4728,3769.9,3769.8,0.1328]
[1753912718081,0.4728,3769.9,3769.8,0.1328]
[1753912718284,4.5768,3769.9,3769.8,0.1328]
[1753912719559,5.46093,3769.9,3769.8,0.1328]
[1753912720991,4.5768,3769.9,3769.8,0.1328]
[1753912722794,7.104,3769.9,3769.8,0.5989]
[1753912723093,0.002,3770.2,3769.8,1.4253]
[1753912723251,0.002,3770.2,3769.9,0.914]
[1753912723456,0.002,3770.2,3770.0,0.8264]
[1753912723783,0.002,3770.2,3770.0,1.7404]
[1753912723980,0.002,3770.2,3770.1,0.914]
[1753912725392,0.002,3770.2,3770.1,1.7243]
[1753912733215,0.002,3770.2,3770.1,1.8571]
[1753912735403,0.002,3770.2,3770.1,1.9899]
[1753912735619,0.002,3770.2,3770.1,10.4283994]
[1753912735831,0.002,3770.2,3770.1,7.77594987]
[1753912737038,0.002,3770.2,3770.1,10.4283994]
[1753912737207,0.002,3770.2,3770.1,14.5293994]
[1753912737397,0.002,3770.2,3770.1,15.0793994]
[1753912737802,0.002,3770.6,3770.5,3.99046814]
[1753912738125,0.002,3770.6,3770.5,14.16863969]
[1753912738441,0.002,3770.6,3770.5,15.22186901]
[1753912739439,0.002,3770.6,3770.5,15.42392884]
[1753912742568,0.002,3770.6,3770.5,10.84982884]
[1753912742763,0.002,3770.6,3770.5,7.44560087]
[1753912742906,0.002,3770.6,3770.5,5.0201]
[1753912743108,0.4716,3770.6,3770.5,4.2318]
[1753912744210,0.4716,3770.6,3770.5,0.1328]
[1753912744541,0.9457,3770.6,3770.5,4.2318]
[1753912745752,0.9457,3770.6,3770.5,0.1328]
[1753912745963,0.9457,3770.6,3770.5,4.2318]
[1753912752470,0.9457,3770.6,3770.5,0.1328]
[1753912752680,30.0,3770.4,3768.8,0.7683]
[1753912752826,30.0,3770.4,3768.2,6.39294987]
[1753912752827,30.7773,3769.9,3768.7,0.797401]
[1753912753170,3.03315386,3770.3,3768.1,0.04]
[1753912753171,3.7773,3769.4,3768.1,0.04]
[1753912753341,0.8177,3769.1,3768.3,0.1328]
[1753912753547,0.8177,3768.6,3768.1,0.1728]
[1753912753769,0.1328,3768.5,3768.1,0.04]
[1753912753945,1.85566499,3768.5,3768.1,0.04]
[1753912754147,2.79936499,3768.5,3768.1,0.04]
[1753912760277,1.2499,3768.5,3768.1,0.04]
[1753912760484,0.8177,3768.5,3768.4,0.1338]
[1753912760804,0.8172,3768.8,3768.4,0.6163]
[1753912760955,0.8172,3768.8,3768.4,0.1338]
[1753912761301,7.09,3769.1,3768.7,0.1328]
[1753912761302,3.0,3769.0,3768.7,0.1328]
[1753912761457,7.09,3769.1,3769.0,0.1328]
[1753912761656,3.0,3769.0,3768.9,0.1328]
[1753912762390,3.0,3769.0,3768.9,0.6153]
[1753912763900,4.663,3769.7,3768.9,1.0517]
[1753912763901,0.7632,3769.7,3768.9,1.0517]
[1753912764061,0.7632,3769.7,3769.0,0.4825]
[1753912764385,0.7632,3769.7,3769.5,0.1328]
[1753912764594,1.3423,3769.7,3769.5,0.1328]
[1753912764789,1.7745,3769.7,3769.5,0.1328]
[1753912772061,1.3423,3769.7,3769.5,0.1328]
[1753912772297,3.0,3769.8,3769.6,0.4825]
[1753912772970,3.0,3769.8,3769.5,0.1328]
[1753912773172,3.4322,3769.8,3769.5,0.6153]
[1753912778203,3.4342,3769.8,3769.5,0.6153]
[1753912780007,3.4342,3769.8,3769.5,0.1328]
[1753912780214,0.83165,3769.7,3769.5,0.1328]
[1753912780409,0.83165,3769.7,3769.5,0.6153]
[1753912780593,0.83165,3769.7,3769.5,0.1328]
[1753912780794,0.83165,3769.7,3769.5,0.6153]
[1753912784902,1.26385,3769.7,3769.5,0.6153]
[1753912785126,0.836385,3769.6,3769.5,0.6153]
[1753912785416,0.836385,3769.6,3769.5,0.1328]
[1753912787025,1.294785,3769.6,3769.5,0.1328]